fUSD/lending_fUSD_20260112
["ID","MTS","AMOUNT","RATE_DAILY","PERIOD"]
[401446402,1768227040126,-500.70457439,0.00017073,2]
[401446403,1768227040136,-487.57806594,0.00017073,2]
[401446404,1768227040146,-531.53854137,0.00017073,2]
[401446405,1768227040156,-500.0,0.00017073,2]
[401446406,1768227040170,-300.28905191,0.00017073,2]
[401446407,1768227040180,-510.77976475,0.00017073,2]
[401446408,1768227040190,-500.0,0.00017073,2]
[401446409,1768227040200,-500.0,0.00017073,2]
[401446410,1768227040209,-500.0,0.00017073,2]
[401446411,1768227040219,-500.0,0.00017073,2]
[401446412,1768227040229,-500.0,0.00017073,2]
[401446413,1768227040240,-155.33738213,0.00017073,2]
[401446414,1768227040252,-216.91872489,0.00017073,2]
[401446415,1768227040262,-184.82275868,0.00017073,2]
[401446416,1768227040274,-241.0,0.00017075,2]
[401446417,1768227040283,-1500.0,0.0001709,2]
[401446418,1768227040294,-155.33738213,0.00017091,2]
[401446419,1768227040303,-216.91872489,0.00017091,2]
[401446421,1768227040313,-184.82275868,0.00017091,2]
[401446422,1768227040322,-574.12855637,0.00017094,2]
[401446423,1768227040332,-150.0,0.000171,2]
[401446424,1768227040342,-150.0,0.000171,2]
[401446425,1768227040353,-155.33738213,0.00017109,2]
[401446426,1768227040363,-216.91872489,0.00017109,2]
[401446428,1768227040372,-184.82275868,0.00017109,2]
[401446429,1768227040381,-250.0,0.00017115,2]
[401446431,1768227040391,-300.0,0.00017115,2]
[401446433,1768227040400,-550.02138729,0.00017115,2]
[401446435,1768227040411,-600.0,0.00017115,2]
[401446437,1768227040420,-155.33738213,0.00017127,2]
[401446439,1768227040430,-216.91872489,0.00017127,2]
[401446441,1768227040440,-184.82275868,0.00017127,2]
[401446443,1768227040449,-155.33738213,0.00017145,2]
[401446445,1768227040459,-216.91872489,0.00017145,2]
[401446447,1768227040468,-184.82275868,0.00017145,2]
[401446449,1768227040478,-155.33738213,0.00017164,2]
[401446451,1768227040489,-216.91872489,0.00017164,2]
[401446453,1768227040498,-184.82275868,0.00017164,2]
[401446455,1768227040507,-200.0,0.00017174,2]
[401446457,1768227040516,-155.33738213,0.00017182,2]
[401446459,1768227040526,-216.91872489,0.00017182,2]
[401446461,1768227040535,-150.0,0.00017182,2]
[401446463,1768227040544,-184.82275868,0.00017182,2]
[401446465,1768227040553,-2579.29224646,0.00017193,2]
[401446467,1768227040563,-155.33738213,0.000172,2]
[401446469,1768227040573,-216.91872489,0.000172,2]
[401446471,1768227040582,-184.82275868,0.000172,2]
[401446473,1768227040592,-155.33738213,0.00017218,2]
[401446475,1768227040601,-216.91872489,0.00017218,2]
[401446477,1768227040611,-184.82275868,0.00017218,2]
[401446479,1768227040621,-155.33738213,0.00017236,2]
[401446481,1768227040631,-216.91872489,0.00017236,2]
[401446482,1768227040641,-184.82275868,0.00017236,2]
[401446484,1768227040651,-155.33738213,0.00017255,2]
[401446486,1768227040660,-216.91872489,0.00017255,2]
[401446488,1768227040670,-184.82275868,0.00017255,2]
[401446491,1768227040679,-155.33738213,0.00017273,2]
[401446493,1768227040689,-216.91872489,0.00017273,2]
[401446495,1768227040699,-184.82275868,0.00017273,2]
[401446497,1768227040709,-155.33738213,0.00017291,2]
[401446499,1768227040718,-216.91872489,0.00017291,2]
[401446501,1768227040727,-184.82275868,0.00017291,2]
[401446503,1768227040737,-166.66,0.00017305,2]
[401446505,1768227040746,-155.33738213,0.00017309,2]
[401446507,1768227040756,-216.91872489,0.00017309,2]
[401446509,1768227040766,-184.82275868,0.00017309,2]
[401446511,1768227040775,-155.33738213,0.00017327,2]
[401446513,1768227040785,-216.91872489,0.00017327,2]
[401446515,1768227040794,-184.82275868,0.00017327,2]
[401446517,1768227040804,-1625.0,0.00017339,2]
[401446519,1768227040814,-155.33738213,0.00017345,2]
[401446521,1768227040823,-216.91872489,0.00017345,2]
[401446523,1768227040833,-150.0,0.00017345,2]
[401446525,1768227040842,-184.82275868,0.00017345,2]
[401446527,1768227040852,-1625.0,0.00017361,2]
[401446528,1768227040862,-155.33738213,0.00017364,2]
[401446529,1768227040874,-216.91872489,0.00017364,2]
[401446530,1768227040883,-184.82275868,0.00017364,2]
[401446531,1768227040894,-1625.0,0.00017364,2]
[401446532,1768227040905,-155.33738213,0.00017382,2]
[401446533,1768227040916,-216.91872489,0.00017382,2]
[401446534,1768227040926,-184.82275868,0.00017382,2]
[401446535,1768227040937,-155.33738213,0.000174,2]
[401446536,1768227040947,-216.91872489,0.000174,2]
[401446537,1768227040956,-150.0,0.000174,2]
[401446538,1768227040965,-184.82275868,0.000174,2]
[401446539,1768227040975,-150.0,0.000174,2]
[401446540,1768227040985,-150.0,0.000174,2]
[401446541,1768227040995,-155.33738213,0.00017418,2]
[401446542,1768227041005,-216.91872489,0.00017418,2]
[401446543,1768227041014,-184.82275868,0.00017418,2]
[401446544,1768227041024,-158.81892862,0.00017436,2]
[401446545,1768227041037,-155.33738213,0.00017436,2]
[401446546,1768227041049,-216.91872489,0.00017436,2]
[401446547,1768227041059,-184.82275868,0.00017436,2]
[401446548,1768227041068,-1625.0,0.00017447,2]
[401446549,1768227041077,-155.33738213,0.00017455,2]
[401446550,1768227041087,-216.91872489,0.00017455,2]
[401446551,1768227041096,-184.82275868,0.00017455,2]
[401446552,1768227041105,-155.33738213,0.00017473,2]
[401446553,1768227041115,-216.91872489,0.00017473,2]
[401446554,1768227041124,-184.82275868,0.00017473,2]
[401446555,1768227041133,-1625.0,0.0001749,2]
[401446556,1768227041143,-155.33738213,0.00017491,2]
[401446557,1768227041153,-216.91872489,0.00017491,2]
[401446558,1768227041164,-184.82275868,0.00017491,2]
[401446559,1768227041174,-155.33738213,0.00017509,2]
[401446560,1768227041183,-216.91872489,0.00017509,2]
[401446561,1768227041193,-150.0,0.00017509,2]
[401446562,1768227041203,-184.82275868,0.00017509,2]
[401446563,1768227041212,-155.33738213,0.00017527,2]
[401446564,1768227041221,-216.91872489,0.00017527,2]
[401446565,1768227041230,-184.82275868,0.00017527,2]
[401446566,1768227041242,-155.33738213,0.00017545,2]
[401446567,1768227041251,-216.91872489,0.00017545,2]
[401446568,1768227041261,-184.82275868,0.00017545,2]
[401446569,1768227041270,-155.33738213,0.00017564,2]
[401446570,1768227041280,-216.91872489,0.00017564,2]
[401446571,1768227041582,-184.82275868,0.00017564,2]
[401446572,1768227041592,-155.33738213,0.00017582,2]
[401446573,1768227041603,-216.91872489,0.00017582,2]
[401446574,1768227041615,-184.82275868,0.00017582,2]
[401446575,1768227041625,-155.33738213,0.000176,2]
[401446576,1768227041640,-216.91872489,0.000176,2]
[401446577,1768227041650,-184.82275868,0.000176,2]
[401446578,1768227041660,-155.33738213,0.00017618,2]
[401446579,1768227041671,-216.91872489,0.00017618,2]
[401446580,1768227041682,-184.82275868,0.00017618,2]
[401446581,1768227041691,-246.48133113,0.00017621,2]
[401446582,1768227041701,-1000.0,0.00017621,2]
[401446583,1768227041711,-1000.0,0.00017621,2]
[401446584,1768227041721,-540.4577012,0.00017621,2]
[401446585,1768227041731,-1000.0,0.00017621,2]
[401446586,1768227041740,-1000.0,0.00017621,2]
[401446587,1768227041750,-155.33738213,0.00017636,2]
[401446588,1768227041765,-216.91872489,0.00017636,2]
[401446589,1768227041776,-184.82275868,0.00017636,2]
[401446590,1768227041786,-7217.71732448,0.0001764,2]
[401446591,1768227041796,-595.37131296,0.00017642,2]
[401446592,1768227041806,-155.33738213,0.00017655,2]
[401446593,1768227041817,-216.91872489,0.00017655,2]
[401446594,1768227041827,-184.82275868,0.00017655,2]
[401446595,1768227041837,-155.33738213,0.00017673,2]
[401446596,1768227041848,-216.91872489,0.00017673,2]
[401446597,1768227041858,-150.0,0.00017673,2]
[401446598,1768227041868,-184.82275868,0.00017673,2]
[401446599,1768227041879,-155.33738213,0.00017691,2]
[401446600,1768227041890,-216.91872489,0.00017691,2]
[401446601,1768227041902,-184.82275868,0.00017691,2]
[401446602,1768227041912,-150.0,0.000177,2]
[401446603,1768227041922,-150.0,0.000177,2]
[401446604,1768227041932,-1000.0,0.000177,2]
[401446605,1768227041942,-155.33738213,0.00017709,2]
[401446606,1768227041953,-216.91872489,0.00017709,2]
[401446607,1768227041964,-184.82275868,0.00017709,2]
[401446608,1768227041975,-155.33738213,0.00017727,2]
[401446609,1768227041986,-216.91872489,0.00017727,2]
[401446610,1768227041997,-184.82275868,0.00017727,2]
[401446611,1768227042008,-155.33738213,0.00017745,2]
[401446612,1768227042018,-216.91872489,0.00017745,2]
[401446613,1768227042029,-184.82275868,0.00017745,2]
[401446614,1768227042039,-155.33738213,0.00017764,2]
[401446615,1768227042049,-216.91872489,0.00017764,2]
[401446616,1768227042060,-184.82275868,0.00017764,2]
[401446617,1768227042069,-1625.0,0.00017779,2]
[401446618,1768227042079,-155.33738213,0.00017782,2]
[401446619,1768227042089,-216.91872489,0.00017782,2]
[401446620,1768227042100,-184.82275868,0.00017782,2]
[401446621,1768227042109,-2000.0,0.000178,2]
[401446622,1768227042120,-155.33738213,0.000178,2]
[401446623,1768227042131,-216.91872489,0.000178,2]
[401446624,1768227042145,-184.82275868,0.000178,2]
[401446625,1768227042156,-1000.0,0.000178,2]
[401446626,1768227042169,-295.67038581,0.00017807,2]
[401446627,1768227042183,-155.33738213,0.00017818,2]
[401446628,1768227042192,-216.91872489,0.00017818,2]
[401446629,1768227042204,-184.82275868,0.00017818,2]
[401446630,1768227042214,-2017.06754,0.0001782,2]
[401446631,1768227042224,-2017.06755,0.0001782,2]
[401446632,1768227042234,-2017.06754,0.0001783,2]
[401446633,1768227042245,-155.33738213,0.00017836,2]
[401446634,1768227042255,-216.91872489,0.00017836,2]
[401446635,1768227042264,-150.0,0.00017836,2]
[401446636,1768227042274,-184.82275868,0.00017836,2]
[401446637,1768227042284,-155.33738213,0.00017855,2]
[401446638,1768227042293,-216.91872489,0.00017855,2]
[401446639,1768227042303,-184.82275868,0.00017855,2]
[401446640,1768227042314,-200.0,0.00017855,2]
[401446641,1768227042324,-200.0,0.00017856,2]
[401446642,1768227042334,-2017.06755,0.0001786,2]
[401446643,1768227042344,-204.65,0.0001786,2]
[401446644,1768227042355,-155.33738213,0.00017873,2]
[401446645,1768227042365,-216.91872489,0.00017873,2]
[401446646,1768227042375,-184.82275868,0.00017873,2]
[401446647,1768227042386,-2017.06754,0.0001788,2]
[401446648,1768227042397,-155.33738213,0.00017891,2]
[401446649,1768227042407,-216.91872489,0.00017891,2]
[401446650,1768227042417,-184.82275868,0.00017891,2]
[401446651,1768227042427,-10000.0,0.000179,2]
[401446652,1768227042437,-30110.0,0.000179,2]
[401446653,1768227042447,-5800.0,0.000179,2]
[401446654,1768227042457,-163.5,0.000179,3]
[401446655,1768227042467,-163.5,0.000179,4]
[401446656,1768227042476,-163.5,0.000179,2]
[401446657,1768227042486,-1000.0,0.000179,2]
[401446658,1768227042496,-2579.29224646,0.000179,2]
[401446659,1768227042506,-9055.0,0.000179,2]
[401446660,1768227042521,-155.33738213,0.00017909,2]
[401446661,1768227042531,-216.91872489,0.00017909,2]
[401446662,1768227042540,-184.82275868,0.00017909,2]
[401446663,1768227042551,-2017.06755,0.0001791,2]
[401446664,1768227042560,-1625.0,0.0001791,2]
[401446665,1768227042571,-155.33738213,0.00017927,2]
[401446666,1768227042580,-216.91872489,0.00017927,2]
[401446667,1768227042591,-184.82275868,0.00017927,2]
[401446668,1768227042603,-155.33738213,0.00017945,2]
[401446669,1768227042614,-216.91872489,0.00017945,2]
[401446670,1768227042624,-184.82275868,0.00017945,2]
[401446671,1768227042634,-155.33738213,0.00017964,2]
[401446672,1768227042644,-216.91872489,0.00017964,2]
[401446673,1768227042654,-184.82275868,0.00017964,2]
[401446674,1768227042663,-500.0,0.00017973,2]
[401446675,1768227042674,-500.0,0.00017973,2]
[401446677,1768227042684,-500.0,0.00017973,2]
[401446678,1768227042694,-183.29515175,0.00017973,2]
[401446679,1768227042703,-500.0,0.00017973,2]
[401446680,1768227042717,-315.19949159,0.00017973,2]
[401446681,1768227042728,-500.0,0.00017973,2]
[401446682,1768227042737,-500.55153068,0.00017973,2]
[401446683,1768227042747,-500.0,0.00017973,2]
[401446684,1768227042757,-645.16964219,0.00017973,2]
[401446685,1768227042767,-500.0,0.00017973,2]
[401446686,1768227042777,-501.38258594,0.00017973,2]
[401446687,1768227042787,-501.47661499,0.00017973,2]
[401446688,1768227042797,-500.0,0.00017973,2]
[401446689,1768227042808,-501.12911319,0.00017973,2]
[401446690,1768227042820,-500.0,0.00017973,2]
[401446691,1768227042830,-500.0,0.00017973,2]
[401446692,1768227042840,-644.05438872,0.00017973,2]
[401446693,1768227042849,-500.0,0.00017973,2]
[401446694,1768227042859,-500.0,0.00017973,2]
[401446695,1768227042869,-502.71154611,0.00017973,2]
[401446696,1768227042879,-500.0,0.00017973,2]
[401446697,1768227042889,-501.2767774,0.00017973,2]
[401446698,1768227042901,-500.0,0.00017973,2]
[401446699,1768227042916,-500.0,0.00017973,2]
[401446700,1768227042927,-502.23302881,0.00017973,2]
[401446701,1768227042938,-500.0,0.00017973,2]
[401446702,1768227042949,-502.46613412,0.00017973,2]
[401446703,1768227042960,-500.0,0.00017973,2]
[401446704,1768227042971,-599.69310789,0.00017973,2]
[401446705,1768227042983,-664.55,0.00017975,2]
[401446706,1768227042996,-155.33738213,0.00017982,2]
[401446707,1768227043007,-216.91872489,0.00017982,2]
[401446708,1768227043019,-184.82275868,0.00017982,2]
[401446709,1768227043029,-152.92662848,0.00017982,2]
[401446710,1768227043039,-500.0,0.00017982,2]
[401446711,1768227043050,-202.55010717,0.00017997,2]
[401446712,1768227043060,-300.0,0.00017999,2]
[401446713,1768227043071,-536.48,0.00017999,2]
[401446714,1768227043082,-536.48,0.00017999,2]
[401446715,1768227043092,-536.48,0.00017999,2]
[401446716,1768227043102,-536.48,0.00017999,2]
[401446717,1768227043112,-536.48,0.00017999,2]
[401446718,1768227043122,-536.48,0.00017999,2]
[401446719,1768227043132,-536.48,0.00017999,2]
[401446720,1768227043141,-536.48,0.00017999,2]
[401446721,1768227043152,-536.48,0.00017999,2]
[401446722,1768227043163,-536.48,0.00017999,2]
[401446723,1768227043177,-536.48,0.00017999,2]
[401446724,1768227043188,-536.48,0.00017999,2]
[401446725,1768227043198,-536.48,0.00017999,2]
[401446726,1768227043209,-536.48,0.00017999,2]
[401446727,1768227043220,-536.48,0.00017999,2]
[401446728,1768227043231,-536.48,0.00017999,2]
[401446729,1768227043243,-536.48,0.00017999,2]
[401446730,1768227043254,-536.48,0.00017999,2]
[401446731,1768227043280,-536.48,0.00017999,2]
[401446732,1768227043294,-536.6750838,0.00017999,2]
[401446733,1768227043305,-677.99669903,0.00017999,2]
[401446734,1768227043317,-300.0,0.00017999,2]
[401446735,1768227043329,-300.0,0.00017999,2]
[401446736,1768227043339,-666.0,0.00017999,2]
[401446737,1768227043349,-150.0,0.00017999,2]
[401446738,1768227043359,-300.0,0.00017999,2]
[401446739,1768227043369,-50000.0,0.00018,2]
[401446740,1768227043380,-50000.0,0.00018,2]
[401446741,1768227043390,-50000.0,0.00018,2]
[401446742,1768227043401,-50000.0,0.00018,2]
[401446743,1768227043412,-25000.0,0.00018,2]
[401446744,1768227043423,-50000.0,0.00018,2]
[401446745,1768227043435,-155.33738213,0.00018,2]
[401446746,1768227043447,-216.91872489,0.00018,2]
[401446747,1768227043458,-150.0,0.00018,2]
[401446748,1768227043470,-150.0,0.00018,2]
[401446749,1768227043482,-184.82275868,0.00018,2]
[401446750,1768227043494,-150.0,0.00018,2]
[401446751,1768227043508,-150.0,0.00018,2]
[401446752,1768227043522,-2320019.18067864,0.00018,2]
[401446753,1768227044048,-2663.018501,0.00018,2]
[401446754,1768227044086,-2659.561022,0.00018,2]
[401446755,1768227044098,-4579.41460216,0.00018,2]
[401446756,1768227044119,-4881.31871085,0.00018,2]
[401446758,1768227044987,-1.7e-07,0.00018,2]
[401446787,1768227046020,-151.0,0.00016079,2]
[401446788,1768227046030,-151.0,0.00016079,2]
[401446789,1768227046039,-25.4512611,0.00018,2]
[401446790,1768227046129,-264227.130787,0.00018,2]
[401446791,1768227046141,-1059.62822795,0.00018,2]
[401446792,1768227046152,-561.54357013,0.00018,2]
[401446793,1768227046171,-1256.12674488,0.00018,2]
[401446796,1768227046583,-32676.42857622,0.00018,2]
[401446797,1768227046641,-11445.44316722,0.00018,2]
[401446802,1768227076059,-500.0,0.00011632,2]
[401446803,1768227076087,-155.42428632,0.00011632,2]
[401446804,1768227077814,-344.57571368,0.00011632,2]
[401446805,1768227077848,-500.0,0.00011632,2]
[401446806,1768227077881,-500.0,0.00011632,2]
[401446807,1768227077913,-500.0,0.00011632,2]
[401446808,1768227077949,-500.0,0.00011632,2]
[401446809,1768227077985,-500.0,0.00011632,2]
[401446810,1768227078021,-500.0,0.00011632,2]
[401446811,1768227078054,-500.0,0.00011632,2]
[401446812,1768227078086,-500.0,0.00011632,2]
[401446813,1768227078120,-500.0,0.00011632,2]
[401446814,1768227078309,-200.0,0.00011632,2]
[401446815,1768227078344,-300.0,0.00011632,2]
[401446816,1768227078353,-10.85857264,0.00011632,2]
[401446817,1768227078410,-489.14142736,0.00011632,2]
[401446818,1768227078442,-184.39287874,0.00011632,2]
[401446819,1768227078476,-500.0,0.00011632,2]
[401446820,1768227078509,-500.0,0.00011632,2]
[401446821,1768227078541,-500.0,0.00011632,2]
[401446822,1768227078577,-500.0,0.00011632,2]
[401446823,1768227078611,-500.0,0.00011632,2]
[401446824,1768227078667,-500.0,0.00011632,2]
[401446825,1768227078716,-500.0,0.00011632,2]
[401446826,1768227078765,-500.0,0.00011632,2]
[401446827,1768227116812,-1539.8,0.00017049,2]
[401446828,1768227116837,-1858.904081,0.00017049,2]
[401446829,1768227116860,-500.0,0.00017073,2]
[401446830,1768227116881,-150.0,0.00017126,2]
[401446831,1768227116902,-1951.295919,0.00017394,2]
[401446832,1768227119461,163.2149018,0.00011632,2]
[401446833,1768227119506,500.0,0.00011632,2]
[401446834,1768227119859,500.0,0.00011632,2]
[401446835,1768227120226,500.0,0.00011632,2]
[401446836,1768227120655,500.0,0.00011632,2]
[401446837,1768227120991,500.0,0.00011632,2]
[401446838,1768227121397,500.0,0.00011632,2]
[401446839,1768227121739,500.0,0.00011632,2]
[401446840,1768227122144,500.0,0.00011632,2]
[401446841,1768227122470,500.0,0.00011632,2]
[401446842,1768227122947,500.0,0.00011632,2]
[401446843,1768227124161,500.0,0.00011632,2]
[401446844,1768227124227,500.0,0.00011632,2]
[401446845,1768227124318,500.0,0.00011632,2]
[401446846,1768227124524,500.0,0.00011632,2]
[401446847,1768227383351,870.2,0.00024776,120]
[401446851,1768227876112,-3240.0,0.00016198,2]
[401446852,1768227881925,5760.0,0.00011763,2]
[401446853,1768227881959,4240.0,0.00011763,2]
[401446854,1768227893215,627.67371124,0.0002,30]
[401446855,1768227995260,886.51296398,0.0002,30]
[401446867,1768228231919,-955.4655682,0.00015999,2]
[401446868,1768228231931,-244.5344318,0.00015999,2]
[401446869,1768228231941,-300.0,0.00015999,2]
[401446870,1768228231951,-297.0,0.00015999,2]
[401446871,1768228231962,-190.47173773,0.00015999,2]
[401446872,1768228231973,-109.52826227,0.00015999,2]
[401446873,1768228231984,-300.0,0.00015999,2]
[401446874,1768228231994,-139.45898638,0.00015999,2]
[401446875,1768228232017,-93.54101362,0.00015999,2]
[401446876,1768228232027,-213.15898638,0.00016,4]
[401446877,1768228232038,-197604.6644531,0.00016,4]
[401446878,1768228232047,-151.0,0.00016074,2]
[401446879,1768228232056,-151.0,0.00016074,2]
[401446880,1768228232066,-500.0,0.00016158,2]
[401446881,1768228232075,-150.0,0.000162,2]
[401446882,1768228232085,-186.5501034,0.000162,2]
[401446883,1768228232095,-209.63647873,0.000162,2]
[401446884,1768228232104,-150.13669543,0.000162,2]
[401446886,1768228232114,-150.00000001,0.000162,2]
[401446888,1768228232123,-178.23387063,0.000162,2]
[401446890,1768228232132,-150.0,0.000162,2]
[401446892,1768228232141,-150.0,0.000162,2]
[401446894,1768228232156,-160.79580005,0.000162,2]
[401446895,1768228232165,-151.45444701,0.000162,2]
[401446897,1768228232175,-150.0,0.000162,2]
[401446899,1768228232185,-150.0,0.000162,2]
[401446901,1768228232194,-150.0,0.000162,2]
[401446903,1768228232204,-150.0,0.000162,2]
[401446905,1768228232213,-248.59699216,0.000162,2]
[401446907,1768228232223,-150.0,0.000162,2]
[401446909,1768228232233,-152.34445976,0.000162,2]
[401446911,1768228232242,-5000.00310403,0.000162,5]
[401446913,1768228232251,-186.5501034,0.00016218,2]
[401446914,1768228232262,-160.79580005,0.00016218,2]
[401446915,1768228232272,-150.0,0.0001622,2]
[401446916,1768228232282,-186.5501034,0.00016236,2]
[401446917,1768228232292,-160.79580005,0.00016236,2]
[401446918,1768228232302,-150.0,0.00016241,2]
[401446919,1768228232311,-186.5501034,0.00016255,2]
[401446920,1768228232320,-160.79580005,0.00016255,2]
[401446921,1768228232330,-150.0,0.00016261,2]
[401446922,1768228232339,-186.5501034,0.00016273,2]
[401446923,1768228232348,-160.79580005,0.00016273,2]
[401446924,1768228232358,-150.0,0.00016282,2]
[401446925,1768228232367,-186.5501034,0.00016291,2]
[401446926,1768228232377,-160.79580005,0.00016291,2]
[401446927,1768228232386,-150.0,0.00016302,2]
[401446928,1768228232400,-3605.48,0.00016304,2]
[401446929,1768228232410,-186.5501034,0.00016309,2]
[401446930,1768228232419,-160.79580005,0.00016309,2]
[401446931,1768228232428,-150.0,0.00016323,2]
[401446932,1768228232438,-186.5501034,0.00016327,2]
[401446933,1768228232452,-160.79580005,0.00016327,2]
[401446934,1768228232462,-150.0,0.00016343,2]
[401446935,1768228232472,-500.0,0.00016344,2]
[401446936,1768228232481,-500.0,0.00016344,2]
[401446937,1768228232490,-306.52926926,0.00016344,2]
[401446938,1768228232500,-186.5501034,0.00016345,2]
[401446939,1768228232511,-160.79580005,0.00016345,2]
[401446940,1768228232520,-150.0,0.00016351,2]
[401446941,1768228232530,-150.0,0.00016364,2]
[401446942,1768228232544,-186.5501034,0.00016364,2]
[401446943,1768228232555,-160.79580005,0.00016364,2]
[401446944,1768228232564,-186.5501034,0.00016382,2]
[401446945,1768228232573,-160.79580005,0.00016382,2]
[401446946,1768228232586,-150.0,0.00016384,2]
[401446947,1768228232595,-186.5501034,0.000164,2]
[401446948,1768228232607,-160.79580005,0.000164,2]
[401446949,1768228232616,-150.0,0.000164,2]
[401446950,1768228232626,-150.0,0.00016405,2]
[401446951,1768228232636,-186.5501034,0.00016418,2]
[401446952,1768228232650,-160.79580005,0.00016418,2]
[401446953,1768228232659,-150.0,0.00016425,2]
[401446954,1768228232669,-186.5501034,0.00016436,2]
[401446955,1768228232679,-160.79580005,0.00016436,2]
[401446956,1768228232689,-23759.06,0.00016438,2]
[401446957,1768228232698,-150.0,0.00016445,2]
[401446958,1768228232709,-186.5501034,0.00016455,2]
[401446959,1768228232718,-160.79580005,0.00016455,2]
[401446960,1768228232728,-200.0,0.00016461,2]
[401446961,1768228232738,-150.0,0.00016466,2]
[401446962,1768228232748,-186.5501034,0.00016473,2]
[401446963,1768228232758,-160.79580005,0.00016473,2]
[401446964,1768228232768,-150.0,0.00016486,2]
[401446965,1768228232777,-186.5501034,0.00016491,2]
[401446966,1768228232787,-160.79580005,0.00016491,2]
[401446967,1768228232797,-150.0,0.00016507,2]
[401446968,1768228232807,-186.5501034,0.00016509,2]
[401446969,1768228232816,-160.79580005,0.00016509,2]
[401446970,1768228232828,-870.2,0.00016517,2]
[401446971,1768228232841,-217.8,0.00016527,2]
[401446972,1768228232851,-150.0,0.00016527,2]
[401446973,1768228232861,-186.5501034,0.00016527,2]
[401446974,1768228232870,-160.79580005,0.00016527,2]
[401446975,1768228232881,-186.5501034,0.00016545,2]
[401446976,1768228232892,-160.79580005,0.00016545,2]
[401446977,1768228232906,-150.0,0.00016548,2]
[401446978,1768228232916,-150.0,0.0001656,2]
[401446979,1768228232925,-150.0,0.0001656,2]
[401446980,1768228232936,-186.5501034,0.00016564,2]
[401446981,1768228232945,-160.79580005,0.00016564,2]
[401446982,1768228232955,-150.0,0.00016568,2]
[401446983,1768228232964,-186.5501034,0.00016582,2]
[401446984,1768228232974,-160.79580005,0.00016582,2]
[401446985,1768228232984,-150.0,0.00016589,2]
[401446986,1768228232995,-186.5501034,0.000166,2]
[401446987,1768228233004,-160.79580005,0.000166,2]
[401446988,1768228233014,-150.0,0.000166,2]
[401446989,1768228233023,-150.0,0.00016609,2]
[401446990,1768228233033,-186.5501034,0.00016618,2]
[401446991,1768228233043,-160.79580005,0.00016618,2]
[401446992,1768228233053,-150.0,0.0001663,2]
[401446993,1768228233063,-186.5501034,0.00016636,2]
[401446994,1768228233073,-160.79580005,0.00016636,2]
[401446995,1768228233082,-150.0,0.0001665,2]
[401446996,1768228233094,-186.5501034,0.00016655,2]
[401446997,1768228233104,-160.79580005,0.00016655,2]
[401446998,1768228233114,-150.0,0.0001667,2]
[401446999,1768228233124,-186.5501034,0.00016673,2]
[401447000,1768228233135,-160.79580005,0.00016673,2]
[401447001,1768228233145,-150.0,0.00016691,2]
[401447002,1768228233156,-186.5501034,0.00016691,2]
[401447003,1768228233166,-160.79580005,0.00016691,2]
[401447004,1768228233176,-186.5501034,0.00016709,2]
[401447005,1768228233187,-160.79580005,0.00016709,2]
[401447006,1768228233196,-150.0,0.00016711,2]
[401447007,1768228233206,-636.58,0.00016712,2]
[401447008,1768228233215,-9999.99,0.00016712,2]
[401447009,1768228233228,-159.73,0.00016712,2]
[401447010,1768228233238,-186.5501034,0.00016727,2]
[401447011,1768228233248,-160.79580005,0.00016727,2]
[401447012,1768228233259,-150.0,0.00016732,2]
[401447013,1768228233269,-186.5501034,0.00016745,2]
[401447014,1768228233280,-160.79580005,0.00016745,2]
[401447015,1768228233290,-150.0,0.00016752,2]
[401447016,1768228233301,-186.5501034,0.00016764,2]